Cogmind - Beta 12 @@@ ROGUE MODE // 2023.03.28 @ 15:32:14 Player: btmk16 Result: Destroyed by YI-UF0 with YI-UF0's Doublenader Performance ------------- Evolutions (0) 0 Regions Visited (2) 400 Robots Destroyed (25) 125 Value Destroyed (629) 629 Prototype IDs (0) 0 Alien Tech Used (0) 0 Bonus (0) 0 TOTAL SCORE: 1154 Bonus ------- None Cogmind --------- Core Integrity 0/250 Matter 297/300 Energy 25/100 System Corruption 3% Temperature Cool (0) Movement Core (50) Location -10/Mines Parts ------- > --- POWER (1) -------- (None) > --- PROPULSION (2) --- (None) > --- UTILITY (2) ------ (None) > --- WEAPON (2) ------- (None) > --- INVENTORY (5) ---- Carbon-fiber Leg Core Shielding Light Armor Plating Heavy Armor Plating Peak State ------------ > --- POWER ------------ Light Nuclear Core > --- PROPULSION ------- Light Treads Light Treads > --- UTILITY ---------- High-capacity Storage Unit Improved Trap Extractor > --- WEAPON ----------- EM Pulse Gun Light EM Pulse Cannon > --- INVENTORY -------- Light Ion Engine Light Ion Engine Light Treads Compact Wheel Compact Wheel Small Storage Unit Large Storage Unit Huge Storage Unit Compact Matter Pod Core Shielding Light Armor Plating Medium Armor Plating Heavy Armor Plating Reflective Plating Hacking Suite Light EM Pulse Cannon Light Assault Rifle Grenade Launcher [Rating: 16] Favorites ----------- Power Light Ion Engine Engine Light Ion Engine Power Core Light Nuclear Core Propulsion Light Treads Treads Light Treads Utility Medium Armor Plating Device Improved Trap Extractor Storage High-capacity Storage Unit Protection Medium Armor Plating Weapon EM Pulse Gun Energy Gun EM Pulse Gun Energy Cannon Light EM Pulse Cannon Ballistic Gun Light Assault Rifle Launcher Grenade Launcher Build | -11 -10 -10 ------- Run | Jun Mat Min Slots Evolved . | . . . Power . | . . . Propulsion . | . . . Utility . | . . . Weapon . | . . . Parts Attached 25 | 8 10 7 Power 2 | 1 . 1 Engine 1 | 1 . . Core 1 | . . 1 Reactor . | . . . Propulsion 4 | 2 1 1 Treads 4 | 2 1 1 Leg . | . . . Wheel . | . . . Hover . | . . . Flight . | . . . Utility 7 | 2 3 2 Device 2 | 1 . 1 Storage 3 | 1 2 . Processor . | . . . Hackware . | . . . Protection 2 | . 1 1 Artifact . | . . . Weapon 12 | 3 6 3 Energy Gun 6 | 2 3 1 Energy Cannon 2 | . 1 1 Ballistic Gun 3 | 1 1 1 Ballistic Cannon . | . . . Launcher 1 | . 1 . Special Weapon . | . . . Impact Weapon . | . . . Slashing Weapon . | . . . Piercing Weapon . | . . . Special Melee Weapon . | . . . Unidentified Prototypes . | . . . Corrupted Parts 1 | . . 1 System Corruption 2 | . . 2 Parts Lost 12 | . 2 10 Power 1 | . . 1 Propulsion 3 | . . 3 Utility 1 | . . 1 Weapon 7 | . 2 5 Highest Loss Streak 6 | . 1 6 To Critical Strikes . | . . . Average Slot Usage (%) 98 | . 100 96 Engine 8 | . 14 1 Core 4 | . . 12 Treads 27 | . 28 27 Device 3 | . 1 7 Storage 14 | . 14 14 Protection 9 | . 12 5 Energy Gun 19 | . 23 12 Energy Cannon 7 | . 3 13 Naked Turns 3 | . . 3 Heaviest Build 56 | 13 56 56 Greatest Support 40 | 40 40 40 Greatest Overweight (x) 1 | . 1 1 Average Overweight (x) . | . . . Largest Inventory Capacity 20 | 8 20 20 Average Capacity 15 | 6 13 19 Most Carried 20 | 6 12 20 Average Carried 10 | 3 7 16 Final Capacity 20 | 8 20 5 Final Carried 12 | 6 12 5 Class Distribution -------------------- 100% | Mutant Dominant Class ---------------- Mutant | -10/Materials Mutant | -10/Mines Resources | -11 -10 -10 ----------- Run | Jun Mat Min Matter Collected 486 | 280 99 107 Remotely . | . . . Salvage Created 1035 | 124 693 218 Parts 53 | 8 37 8 Haulers Intercepted 1 | . 1 . Recyclers Shooed . | . . . Parts Field Recycled . | . . . Retrieved Matter . | . . . Parts Self-Destructed . | . . . Prevented . | . . . Kills | -11 -10 -10 ------- Run | Jun Mat Min Combat Hostiles Destroyed 17 | . 13 4 Guns 12 | . 10 2 Cannons 1 | . . 1 AOE 2 | . 2 . Classes Destroyed 8 | 2 6 . Worker 1 | . 1 . Tunneler 2 | 2 . . Hauler 1 | . 1 . Recycler 2 | 1 1 . Operator 1 | . 1 . Watcher 1 | . 1 . Swarmer 3 | . 3 . Grunt 14 | . 10 4 Best Kill Streak 3 | 3 3 2 Combat Bots Only 3 | . 3 2 Max Kills in Single Turn 3 | 2 3 1 Gunslinging . | . . . Exploded 2 | . 2 . Melee . | . . . Uniques/NPCs Destroyed . | . . . Combat | -11 -10 -10 -------- Run | Jun Mat Min Damage Taken 1380 | . 347 1033 Core 254 | . . 254 Absorbed by Shields . | . . . Core Remaining (%) 100 | 100 . . Volleys Fired 72 | 3 44 25 Largest 2 | 2 2 2 Hottest 96 | 80 96 96 Shots Fired 126 | 6 87 33 Gun 107 | 6 80 21 Cannon 18 | . 6 12 Launcher 1 | . 1 . Special . | . . . Kinetic 5 | . 2 3 Thermal 4 | . . 4 Explosive 1 | . 1 . Electromagnetic 116 | 6 84 26 Robot Hit Streak 9 | 3 7 9 Robot Miss Streak 4 | 1 4 3 Penetration Max . | . . . Secondary Targets . | . . . Shots Hit Robots 76 | 4 50 22 Core Hits 32 | 3 23 6 Critical Kills . | . . . Critical Parts Destroyed . | . . . Critical Strikes 2 | . 2 . Corrupt 2 | . 2 . Melee Attacks . | . . . Impact . | . . . Slashing . | . . . Piercing . | . . . Sneak Attacks . | . . . Combat Hostiles . | . . . Follow-up Attacks . | . . . Damage Inflicted 1400 | 124 942 334 Guns 892 | 50 668 174 Cannons 265 | . 105 160 Explosions 243 | 74 169 . Melee . | . . . Ramming . | . . . Kinetic 19 | . . 19 Thermal 286 | 74 169 43 Explosive . | . . . Electromagnetic 1095 | 50 773 272 Impact . | . . . Slashing . | . . . Piercing . | . . . Highest Corruption 3 | . 1 3 Average Corruption 1 | . 1 2 Corruption Purged . | . . . Corruption Blocked . | . . . Effects 25 | . 11 14 Message Errors 5 | . 3 2 Matter Fused 7 | . 1 6 Heat Flow Errors 3 | . 3 . Energy Discharges 3 | . 3 . Data Loss (minor) 2 | . . 2 Data Loss (major) 2 | . . 2 Misfires 1 | . . 1 Alerts 2 | . 1 1 Overload Shots . | . . . Overflow Damage 26 | . 26 . Projectiles . | . . . Explosions 26 | . 26 . Melee . | . . . Knockbacks . | . . . Impact . | . . . Kinetic . | . . . Secondary . | . . . Self-Inflicted Damage 53 | . 53 . Shots 2 | . 2 . Rammed . | . . . Targets Rammed . | . . . Kicked . | . . . Crushed . | . . . Highest Temperature 261 | 18 261 240 Average Temperature 75 | 12 68 104 Received Heat Transfer 330 | . 171 159 Effects 1 | . . 1 Interference 1 | . . 1 Siege Activations . | . . . Robots Corrupted 2 | . 1 1 Combat Hostiles 2 | . 1 1 Parts Fried 9 | . 5 4 Impact Corruptions . | . . . Robots Melted . | . . . Combat Hostiles . | . . . Parts Melted . | . . . Heat Transferred 400 | 50 250 100 Parts Sabotaged . | . . . Parts Stolen . | . . . Parts Stripped . | . . . Power Chain Reactions 5 | 1 4 . Missiles Intercepted . | . . . Alert | -11 -10 -10 ------- Run | Jun Mat Min Peak Influence 192 | 15 192 89 Initial 34 | . 9 34 Average 76 | 5 104 44 Maximum Alert Level . | . . . Low Security (%) 100 | 100 100 100 Level 1 . | . . . Level 2 . | . . . Level 3 . | . . . Level 4 . | . . . Level 5 . | . . . High Security . | . . . Max Security . | . . . Squads Dispatched 3 | . 3 . Investigation 2 | . 2 . Extermination . | . . . Reinforcement 1 | . 1 . Assault . | . . . Garrison . | . . . Intercept . | . . . Searches Triggered . | . . . Construction Impeded . | . . . Haulers Reinforced . | . . . Active Scanning Responses . | . . . Cargo Convoy Interrupts . | . . . Stealth | -11 -10 -10 --------- Run | Jun Mat Min Distress Signals 3 | . 2 1 Communications Jammed . | . . . Distress Signals . | . . . Times Spotted 34 | . 28 6 Peak Tracking Total 3 | . 3 2 Tactical Retreats 2 | . 1 1 Traps | -11 -10 -10 ------- Run | Jun Mat Min Traps Triggered 3 | . 2 1 Indirectly . | . . . Trap Hack Attempts . | . . . Triggered . | . . . Disarmed . | . . . Reprogrammed . | . . . Reused . | . . . Traps Extracted . | . . . Installed . | . . . Triggered . | . . . Machines | -11 -10 -10 ---------- Run | Jun Mat Min Machines Disabled 1 | . 1 . Max in Single Turn 1 | . 1 . Machines Repaired . | . . . Machines Sabotaged . | . . . Overloaded Fab Kills . | . . . Hacking | -11 -10 -10 --------- Run | Jun Mat Min Machines Accessed 6 | . 5 1 Terminals 5 | . 5 . Fabricators . | . . . Repair Stations . | . . . Recycling Units . | . . . Scanalyzers . | . . . Garrison Access . | . . . Total Hacks 17 | . 16 1 Successful 11 | . 10 1 Failed 6 | . 6 . Catastrophic . | . . . Database Lockouts . | . . . Manual 16 | . 16 . Terminals 16 | . 16 . Fabricators . | . . . Repair Stations . | . . . Recycling Units . | . . . Scanalyzers . | . . . Garrison Access . | . . . Terminal Hacks 8 | . 7 1 Part Schematic 1 | . 1 . Robot Analysis 4 | . 4 . Open Door 1 | . . 1 Alert Level 1 | . 1 . Zone Layout 1 | . 1 . Fabricator Hacks . | . . . Repair Station Hacks . | . . . Recycling Unit Hacks . | . . . Scanalyzer . | . . . Garrison Access Hacks . | . . . Unauthorized Hacks 3 | . 3 . Terminals 3 | . 3 . Botnet 3 | . 3 . Fabricators . | . . . Repair Stations . | . . . Recycling Units . | . . . Scanalyzers . | . . . Garrison Access . | . . . Data Cores Recovered 1 | . 1 . Used 1 | . 1 . Hacking Detections 5 | . 5 . Full Trace Events 1 | . 1 . Feedback Events 1 | . 1 . Corruption 1 | . 1 . Feedback Blocked . | . . . Robot Schematics Acquired . | . . . Robots Built . | . . . Authchips . | . . . Time . | . . . Total Robot Build Rating . | . . . Part Schematics Acquired 1 | . 1 . Parts Built . | . . . Authchips . | . . . Time . | . . . Total Part Build Rating . | . . . Parts Repaired . | . . . Time . | . . . Parts Recycled . | . . . Recycled Matter . | . . . Retrieved Matter . | . . . Retrieved Components . | . . . Parts Scanalyzed . | . . . Part Schematics Acquired . | . . . Parts Damaged . | . . . Bothacking | -11 -10 -10 ------------ Run | Jun Mat Min Used RIF Installer . | . . . Robots Hacked . | . . . Non-combat . | . . . Combat . | . . . Robot Hacks Applied . | . . . Relay Couplers Released . | . . . Fabnet Peak Effective % . | . . . Robots Rewired . | . . . Allies Hacked . | . . . Hacks Repelled . | . . . Allies | -11 -10 -10 -------- Run | Jun Mat Min Total Allies . | . . . Largest Group . | . . . Highest-Rated Group . | . . . Highest-Rated Ally . | . . . Total Orders . | . . . Ally Attacks . | . . . Total Damage . | . . . Kills . | . . . Allies Corrupted . | . . . Allies Melted . | . . . Intel | -11 -10 -10 ------- Run | Jun Mat Min Robot Analysis Total 4 | . 4 . Derelict Logs Recovered 1 | . . 1 Drone Launches . | . . . Drone Recoveries . | . . . Exploration | -11 -10 -10 ------------- Run | Jun Mat Min Turns Passed 2326 | 124 1329 873 Spaces Moved 1086 | 63 698 325 Core 9 | 2 . 7 Treads 1077 | 61 698 318 Legs . | . . . Wheels . | . . . Hover . | . . . Flight . | . . . Fastest Speed 50 | 50 160 50 Average Speed 187 | 156 167 235 Slowest Speed 240 | 160 240 240 Overloaded Moves . | . . . Propulsion Burnouts . | . . . Robots Hopped . | . . . Cave-ins Triggered . | . . . Exploration Rate (%) 52 | 4 97 55 Regions Visited 2 Branch Regions 1 Pre-discovered Areas . | . . . Known Exits Taken . | . . . Unknown Exits Taken 2 | 1 1 . Scrap Searched 2 | . . 2 Spaces Dug 10 | . 10 . Terrain Destroyed 24 | 2 22 . Melee . | . . . Projectile . | . . . AOE 24 | 2 22 . Terrain Rammed . | . . . Walls Destroyed . | . . . Machines Disabled . | . . . Actions | -11 -10 -10 --------- Run | Jun Mat Min Total 1250 | 79 773 398 Wait 46 | . 11 35 Move 1084 | 62 697 325 Hop . | . . . Pick Up 17 | 6 6 5 Fast Attach 12 | 7 2 3 Attach 5 | . 2 3 Detach 2 | . 1 1 Swap 8 | 1 6 1 Drop 4 | . 4 . Fire 72 | 3 44 25 Melee . | . . . Ram . | . . . Kick . | . . . Crush . | . . . Escape Stasis . | . . . Rewire . | . . . Trap . | . . . Miscellaneous . | . . . Route ------- -11/Junkyard -10/Materials (discovered 5 exits: [*Mat x3] / *Min x2) -10/Mines (discovered 1 exit: [*Exi]) History --------- Turn | Location | Event 24 | -11/Junkyard | Discovered new exit (range 14) 125 | -11/Junkyard | Entered Materials 311 | -10/Materials | Build established: Mutant 473 | -10/Materials | Discovered new exit (range 12) 762 | -10/Materials | Discovered new exit (range 5) 804 | -10/Materials | Discovered new exit (range 9) 1022 | -10/Materials | Discovered new exit (range 6) 1176 | -10/Materials | Discovered new exit (range 8) 1454 | -10/Materials | Entered Mines 1559 | -10/Mines | Learned location of 1 exit from Materials 1693 | -10/Mines | Met a Derelict who couldn't figure out how to use a Trap Extractor 1768 | -10/Mines | Deemed a non-threat by the Exiles lab entrance 1768 | -10/Mines | Discovered new exit (range 5) 2321 | -10/Mines | Core integrity fell below 50% 2324 | -10/Mines | Released all parts (2) 2326 | -10/Mines | Core integrity fell below 20% 2327 | -10/Mines | Destroyed by YI-UF0 with YI-UF0's Doublenader Last Messages --------------- destroying stuff raised the alert level high enough to trigger assault squads over in the main complex, and they later decided the best way to defend their interests would be to start expanding in this direction." 02276_ System corrupted: Component data lost. 02284_ K-01 Serf destroyed. 02295_ The unstable cave ceiling collapses. 02306_ Lgt. EM Pulse Cannon destroyed. 02308_ Lgt. Nuclear Core destroyed. 02311_ System corrupted: Matter fused (-10). 02312_ Lgt. Treads destroyed. 02319_ The unstable cave ceiling collapses. 02320_ Lgt. Treads destroyed. 02321_ The unstable cave ceiling collapses. 02323_ Lgt. Assault Rifle destroyed. 02323_ Sml. Laser destroyed. 02324_ The unstable cave ceiling collapses. 02324_ Released Hcp. Storage Unit. 02324_ Released Imp. Trap Extractor. 02326_ The unstable cave ceiling collapses. 02326_ R-06 Scavenger collects Med. Matter Pod. Map ----- +----------------------------------------------------+ | ?????????????????????????????????????????????????? | | ?????????????????????????????????????????????????? | | ?????????????????????????????????????????????????? | | ?????????????????????????????????????????????????? | | ?????????????????????????????????????????????????? | | ?????????????????????????????????????????????????? | | ???????????????????????????????????????????######? | | ??????????????????????????????????????????## ## | | ?????????????????????????????????????????## | | ????????????????????????????????????????## | | ???????????????????????????????????????## | | ????????????????? #????????????????????# # | | ????????????????? #???????????#######?# #### | | ???????????????? ##??????#### ### ##??? | | ?????????????? ## ####### ## ##???? | | ?????????????? ## ##????? | | ?????????????? # = ## #?????? | | ??????????????! !]! # ### #?????? | | ????????????? g *!!*! #?????? | | ?????????????*% !=! #?????? | | ???????????? # !! #####?????? | | ???????????!##k ##?????????? | | ??????????? # * ##??????????? | | ?????????? # # #??????????? | | ?????????? ######??????????? | | ?????????? !! @ ######???????????????? | | ?????????? # #??????????????????### | | ?????????? r #??????????????????# | | ??????????? r% # # ####??????????????????# # | | ???????????%= ?####??????????????????????# # | | ???????????? #????????????????????????????# # | | ???????????? ??????????????????????????????# # | | ???????????? ???????????????????????????????# # | | ???????????????????????????????????????????????# # | | ??????????????????????????????????????????????## | | ??????????????????????????????????????????????# | | ??????????????????????????????????????????????# | | ??????????????????????????????????????????????## | | ??????????????????????????????????????????????## | | ????????????????????????????????????????####?## | | ????????????????????????????????????????#" ### | | ????????????????????????????????????????# !^= | | ???????????????????????????????????????## ! | | ???????????????????????????????????????# | | ???????????????????????????????????????## ! X | | ????????????????????????????????????????# | | ????????????????????????????????????????# ##### | | ????????????????????????????????????????###????## | | ????????????????????????????????????????????????# | | ????????????????????????????????????????????????# | +----------------------------------------------------+ Best States ------------- Heat Dissipation 25 Energy Generation 14 Energy Capacity 160 Matter Stores 300 Matter Capacity 300 Sight Range 16 Terrain Scan Density 10 Armor Coverage 225 Evasion (%) 40 Recoil Reduction 2 Trap Extractor Capacity 6 Item Schematics ----------------- EM Pulse Gun | -10/Materials | Hacked Robot Schematics ------------------ None Fabricated ------------ Nothing Alien Tech Used ----------------- None Achievements -------------- None Challenges ------------ None Game ------ Seed ConstructGuidedInsulator Manual? 0 Play Time 00:11:51 Cumulative 601.0 hours Start 2023.03.28 @ 14:49:55 End 2023.03.28 @ 15:32:14 Sessions 1 Manual Loads 0 Difficulty Rogue Special Mode None Game No. 624 Rogue 623 Adventurer 0 Explorer 1 Win Type - Total 29 Types 20/0/6/3/0/0/0/0/0 Lore% 84 Gallery% 92 Achievement% 77 Wizard Run 0 Options --------- ASCII 0 Keyboard 1 Movement Vi Keybinds 0 Fullscreen 1 Font 18/SmallcapsGlow Map View 76x50 Tactical HUD 1 Map Filters NONE Filters NONE Steam 1 RUN: f94f0ce4-72b3-4b29-a93c-f780c7c5c926